{"text_format":"3","workbook":"xlsx","n_sheets":3,"sheets":["ข้อมูลของลูกค้าเป้าหมาย","ยอดขายที่คาดการณ์ไว้ ","การคาดการณ์น้ำหนักรายเดือน"],"not_rendered":{"charts":1,"defined_names":10},"read":"whole","date_system":"1900"}

{"sheet":"ข้อมูลของลูกค้าเป้าหมาย","index":0,"n_rows":9,"n_cols":10,"rows_kept":9}
[null,"ชื่อบริษัท"]
[null,"การติดตามลูกค้าเป้าหมายโดยละเอียด"]
[null,{"$f":"TODAY()","v":"2022-04-08"}]
[{"$nulls":8},{"$f":"ชื่อบริษัท","v":"ชื่อบริษัท"},"เป็นความลับ"]
[null,"ชื่อลูกค้าเป้าหมาย","ที่ติดต่อใหม่","ลูกค้าเป้าหมาย \nแหล่งข้อมูล","ลูกค้าเป้าหมาย \nภูมิภาค","ลูกค้าเป้าหมาย \nชนิด","โอกาสทางการขายที่เป็นไปได้","โอกาส \nของการขาย","การคาดการณ์ \nปิด","น้ำหนัก \nการคาดการณ์"]
[null,"A. Datum Corporation",{"$nulls":3},"กลยุทธ์",{"v":300000,"d":"฿300,000.00"},{"v":0.9,"d":"90%"},"มกราคม",{"$f":"IFERROR(IF(LeadData[[#This Row],[โอกาส \nของการขาย]]<>\"\",LeadData[[#This Row],[โอกาส \nของการขาย]]*LeadData[[#This Row],[โอกาสทางการขายที่เป็นไปได้]],\"\"),\"\")","v":{"v":270000,"d":"฿270,000.00"}}]
[null,"Adventure Works",{"$nulls":3},"กลยุทธ์",{"v":200000,"d":"฿200,000.00"},{"v":0.1,"d":"10%"},"กุมภาพันธ์",{"$f":"IFERROR(IF(LeadData[[#This Row],[โอกาส \nของการขาย]]<>\"\",LeadData[[#This Row],[โอกาส \nของการขาย]]*LeadData[[#This Row],[โอกาสทางการขายที่เป็นไปได้]],\"\"),\"\")","v":{"v":20000,"d":"฿20,000.00"}}]
[null,"Alpine Ski House",{"$nulls":3},"ด้านกลยุทธ์",{"v":100000,"d":"฿100,000.00"},{"v":0.2,"d":"20%"},"มีนาคม",{"$f":"IFERROR(IF(LeadData[[#This Row],[โอกาส \nของการขาย]]<>\"\",LeadData[[#This Row],[โอกาส \nของการขาย]]*LeadData[[#This Row],[โอกาสทางการขายที่เป็นไปได้]],\"\"),\"\")","v":{"v":20000,"d":"฿20,000.00"}}]
[null,"ผลรวม",{"$nulls":4},{"$f":"SUBTOTAL(109,LeadData[โอกาสทางการขายที่เป็นไปได้])","v":{"v":600000,"d":"฿600,000.00"}},null,null,{"$f":"SUBTOTAL(109,LeadData[น้ำหนัก \nการคาดการณ์])","v":{"v":310000,"d":"฿310,000.00"}}]

{"sheet":"ยอดขายที่คาดการณ์ไว้ ","index":1,"n_rows":22,"n_cols":14,"rows_kept":22,"merged":[[3,12,3,13]]}
[null,{"$f":"ชื่อบริษัท","v":"ชื่อบริษัท"}]
[null,"ยอดขายที่คาดการณ์ไว้"]
[null,{"$f":"TrackerDate","v":"2022-04-08"}]
[{"$nulls":11},{"$f":"ชื่อบริษัท","v":"ชื่อบริษัท"},"เป็นความลับ"]
[null,"ชื่อลูกค้าเป้าหมาย","มกราคม \nการคาดการณ์","กุมภาพันธ์ \nการคาดการณ์","มีนาคม \nการคาดการณ์","เมษายน \nการคาดการณ์","พฤษภาคม \nการคาดการณ์","มิถุนายน \nการคาดการณ์","การคาดการณ์เดือนกรกฎาคม","สิงหาคม \nการคาดการณ์","กันยายน \nการคาดการณ์","ตุลาคม \nการคาดการณ์","พฤศจิกายน \nการคาดการณ์","ธันวาคม \nการคาดการณ์"]
[null,{"$f":"IFERROR(IF(AND(LeadData[[#This Row],[ชื่อลูกค้าเป้าหมาย]] <> \"\", ROW(ForecastedSales[ชื่อลูกค้าเป้าหมาย])<>การป้อนข้อมูลล่าสุด),LeadData[ชื่อลูกค้าเป้าหมาย], \"\"),\"\")","v":"A. Datum Corporation"},{"$f":"IFERROR(IF(LeadData[[#This Row],[การคาดการณ์ \nปิด]] <>\"\",IF(LeadData[[#This Row],[การคาดการณ์ \nปิด]]= \"มกราคม\",LeadData[น้ำหนัก \nการคาดการณ์],0),\"\"),\"\")","v":{"v":270000,"d":"฿270,000"}},{"$f":"IFERROR(IF(LeadData[[#This Row],[การคาดการณ์ \nปิด]] <>\"\",IF(LeadData[[#This Row],[การคาดการณ์ \nปิด]] = \"กุมภาพันธ์\",LeadData[น้ำหนัก \nการคาดการณ์],0),\"\"),\"\")","v":{"v":0,"d":"฿0"}},{"$f":"IFERROR(IF(LeadData[[#This Row],[การคาดการณ์ \nปิด]] <>\"\",IF(LeadData[[#This Row],[การคาดการณ์ \nปิด]] = \"มีนาคม\",LeadData[น้ำหนัก \nการคาดการณ์],0),\"\"),\"\")","v":{"v":0,"d":"฿0"}},{"$f":"IFERROR(IF(LeadData[[#This Row],[การคาดการณ์ \nปิด]] <>\"\",IF(LeadData[[#This Row],[การคาดการณ์ \nปิด]] = \"เมษายน\",LeadData[น้ำหนัก \nการคาดการณ์],0),\"\"),\"\")","v":{"v":0,"d":"฿0"}},{"$f":"IFERROR(IF(LeadData[[#This Row],[การคาดการณ์ \nปิด]] <>\"\",IF(LeadData[[#This Row],[การคาดการณ์ \nปิด]] = \"พฤษภาคม\",LeadData[น้ำหนัก \nการคาดการณ์],0),\"\"),\"\")","v":{"v":0,"d":"฿0"}},{"$f":"IFERROR(IF(LeadData[[#This Row],[การคาดการณ์ \nปิด]] <>\"\",IF(LeadData[[#This Row],[การคาดการณ์ \nปิด]] = \"มิถุนายน\",LeadData[น้ำหนัก \nการคาดการณ์],0),\"\"),\"\")","v":{"v":0,"d":"฿0"}},{"$f":"IFERROR(IF(LeadData[[#This Row],[การคาดการณ์ \nปิด]] <>\"\",IF(LeadData[[#This Row],[การคาดการณ์ \nปิด]] = \"July\",LeadData[น้ำหนัก \nการคาดการณ์],0),\"\"),\"\")","v":{"v":0,"d":"฿0"}},{"$f":"IFERROR(IF(LeadData[[#This Row],[การคาดการณ์ \nปิด]] <>\"\",IF(LeadData[[#This Row],[การคาดการณ์ \nปิด]] = \"สิงหาคม\",LeadData[น้ำหนัก \nการคาดการณ์],0),\"\"),\"\")","v":{"v":0,"d":"฿0"}},{"$f":"IFERROR(IF(LeadData[[#This Row],[การคาดการณ์ \nปิด]] <>\"\",IF(LeadData[[#This Row],[การคาดการณ์ \nปิด]] = \"กันยายน\",LeadData[น้ำหนัก \nการคาดการณ์],0),\"\"),\"\")","v":{"v":0,"d":"฿0"}},{"$f":"IFERROR(IF(LeadData[[#This Row],[การคาดการณ์ \nปิด]] <>\"\",IF(LeadData[[#This Row],[การคาดการณ์ \nปิด]] = \"ตุลาคม\",LeadData[น้ำหนัก \nการคาดการณ์],0),\"\"),\"\")","v":{"v":0,"d":"฿0"}},{"$f":"IFERROR(IF(LeadData[[#This Row],[การคาดการณ์ \nปิด]] <>\"\",IF(LeadData[[#This Row],[การคาดการณ์ \nปิด]] = \"พฤศจิกายน\",LeadData[น้ำหนัก \nการคาดการณ์],0),\"\"),\"\")","v":{"v":0,"d":"฿0"}},{"$f":"IFERROR(IF(LeadData[[#This Row],[การคาดการณ์ \nปิด]] <>\"\",IF(LeadData[[#This Row],[การคาดการณ์ \nปิด]] = \"ธันวาคม\",LeadData[น้ำหนัก \nการคาดการณ์],0),\"\"),\"\")","v":{"v":0,"d":"฿0"}}]
[null,{"$f":"IFERROR(IF(AND(LeadData[[#This Row],[ชื่อลูกค้าเป้าหมาย]] <> \"\", ROW(ForecastedSales[ชื่อลูกค้าเป้าหมาย])<>การป้อนข้อมูลล่าสุด),LeadData[ชื่อลูกค้าเป้าหมาย], \"\"),\"\")","v":"Adventure Works"},{"$f":"IFERROR(IF(LeadData[[#This Row],[การคาดการณ์ \nปิด]] <>\"\",IF(LeadData[[#This Row],[การคาดการณ์ \nปิด]]= \"มกราคม\",LeadData[น้ำหนัก \nการคาดการณ์],0),\"\"),\"\")","v":{"v":0,"d":"฿0"}},{"$f":"IFERROR(IF(LeadData[[#This Row],[การคาดการณ์ \nปิด]] <>\"\",IF(LeadData[[#This Row],[การคาดการณ์ \nปิด]] = \"กุมภาพันธ์\",LeadData[น้ำหนัก \nการคาดการณ์],0),\"\"),\"\")","v":{"v":20000,"d":"฿20,000"}},{"$f":"IFERROR(IF(LeadData[[#This Row],[การคาดการณ์ \nปิด]] <>\"\",IF(LeadData[[#This Row],[การคาดการณ์ \nปิด]] = \"มีนาคม\",LeadData[น้ำหนัก \nการคาดการณ์],0),\"\"),\"\")","v":{"v":0,"d":"฿0"}},{"$f":"IFERROR(IF(LeadData[[#This Row],[การคาดการณ์ \nปิด]] <>\"\",IF(LeadData[[#This Row],[การคาดการณ์ \nปิด]] = \"เมษายน\",LeadData[น้ำหนัก \nการคาดการณ์],0),\"\"),\"\")","v":{"v":0,"d":"฿0"}},{"$f":"IFERROR(IF(LeadData[[#This Row],[การคาดการณ์ \nปิด]] <>\"\",IF(LeadData[[#This Row],[การคาดการณ์ \nปิด]] = \"พฤษภาคม\",LeadData[น้ำหนัก \nการคาดการณ์],0),\"\"),\"\")","v":{"v":0,"d":"฿0"}},{"$f":"IFERROR(IF(LeadData[[#This Row],[การคาดการณ์ \nปิด]] <>\"\",IF(LeadData[[#This Row],[การคาดการณ์ \nปิด]] = \"มิถุนายน\",LeadData[น้ำหนัก \nการคาดการณ์],0),\"\"),\"\")","v":{"v":0,"d":"฿0"}},{"$f":"IFERROR(IF(LeadData[[#This Row],[การคาดการณ์ \nปิด]] <>\"\",IF(LeadData[[#This Row],[การคาดการณ์ \nปิด]] = \"July\",LeadData[น้ำหนัก \nการคาดการณ์],0),\"\"),\"\")","v":{"v":0,"d":"฿0"}},{"$f":"IFERROR(IF(LeadData[[#This Row],[การคาดการณ์ \nปิด]] <>\"\",IF(LeadData[[#This Row],[การคาดการณ์ \nปิด]] = \"สิงหาคม\",LeadData[น้ำหนัก \nการคาดการณ์],0),\"\"),\"\")","v":{"v":0,"d":"฿0"}},{"$f":"IFERROR(IF(LeadData[[#This Row],[การคาดการณ์ \nปิด]] <>\"\",IF(LeadData[[#This Row],[การคาดการณ์ \nปิด]] = \"กันยายน\",LeadData[น้ำหนัก \nการคาดการณ์],0),\"\"),\"\")","v":{"v":0,"d":"฿0"}},{"$f":"IFERROR(IF(LeadData[[#This Row],[การคาดการณ์ \nปิด]] <>\"\",IF(LeadData[[#This Row],[การคาดการณ์ \nปิด]] = \"ตุลาคม\",LeadData[น้ำหนัก \nการคาดการณ์],0),\"\"),\"\")","v":{"v":0,"d":"฿0"}},{"$f":"IFERROR(IF(LeadData[[#This Row],[การคาดการณ์ \nปิด]] <>\"\",IF(LeadData[[#This Row],[การคาดการณ์ \nปิด]] = \"พฤศจิกายน\",LeadData[น้ำหนัก \nการคาดการณ์],0),\"\"),\"\")","v":{"v":0,"d":"฿0"}},{"$f":"IFERROR(IF(LeadData[[#This Row],[การคาดการณ์ \nปิด]] <>\"\",IF(LeadData[[#This Row],[การคาดการณ์ \nปิด]] = \"ธันวาคม\",LeadData[น้ำหนัก \nการคาดการณ์],0),\"\"),\"\")","v":{"v":0,"d":"฿0"}}]
[null,{"$f":"IFERROR(IF(AND(LeadData[[#This Row],[ชื่อลูกค้าเป้าหมาย]] <> \"\", ROW(ForecastedSales[ชื่อลูกค้าเป้าหมาย])<>การป้อนข้อมูลล่าสุด),LeadData[ชื่อลูกค้าเป้าหมาย], \"\"),\"\")","v":"Alpine Ski House"},{"$f":"IFERROR(IF(LeadData[[#This Row],[การคาดการณ์ \nปิด]] <>\"\",IF(LeadData[[#This Row],[การคาดการณ์ \nปิด]]= \"มกราคม\",LeadData[น้ำหนัก \nการคาดการณ์],0),\"\"),\"\")","v":{"v":0,"d":"฿0"}},{"$f":"IFERROR(IF(LeadData[[#This Row],[การคาดการณ์ \nปิด]] <>\"\",IF(LeadData[[#This Row],[การคาดการณ์ \nปิด]] = \"กุมภาพันธ์\",LeadData[น้ำหนัก \nการคาดการณ์],0),\"\"),\"\")","v":{"v":0,"d":"฿0"}},{"$f":"IFERROR(IF(LeadData[[#This Row],[การคาดการณ์ \nปิด]] <>\"\",IF(LeadData[[#This Row],[การคาดการณ์ \nปิด]] = \"มีนาคม\",LeadData[น้ำหนัก \nการคาดการณ์],0),\"\"),\"\")","v":{"v":20000,"d":"฿20,000"}},{"$f":"IFERROR(IF(LeadData[[#This Row],[การคาดการณ์ \nปิด]] <>\"\",IF(LeadData[[#This Row],[การคาดการณ์ \nปิด]] = \"เมษายน\",LeadData[น้ำหนัก \nการคาดการณ์],0),\"\"),\"\")","v":{"v":0,"d":"฿0"}},{"$f":"IFERROR(IF(LeadData[[#This Row],[การคาดการณ์ \nปิด]] <>\"\",IF(LeadData[[#This Row],[การคาดการณ์ \nปิด]] = \"พฤษภาคม\",LeadData[น้ำหนัก \nการคาดการณ์],0),\"\"),\"\")","v":{"v":0,"d":"฿0"}},{"$f":"IFERROR(IF(LeadData[[#This Row],[การคาดการณ์ \nปิด]] <>\"\",IF(LeadData[[#This Row],[การคาดการณ์ \nปิด]] = \"มิถุนายน\",LeadData[น้ำหนัก \nการคาดการณ์],0),\"\"),\"\")","v":{"v":0,"d":"฿0"}},{"$f":"IFERROR(IF(LeadData[[#This Row],[การคาดการณ์ \nปิด]] <>\"\",IF(LeadData[[#This Row],[การคาดการณ์ \nปิด]] = \"July\",LeadData[น้ำหนัก \nการคาดการณ์],0),\"\"),\"\")","v":{"v":0,"d":"฿0"}},{"$f":"IFERROR(IF(LeadData[[#This Row],[การคาดการณ์ \nปิด]] <>\"\",IF(LeadData[[#This Row],[การคาดการณ์ \nปิด]] = \"สิงหาคม\",LeadData[น้ำหนัก \nการคาดการณ์],0),\"\"),\"\")","v":{"v":0,"d":"฿0"}},{"$f":"IFERROR(IF(LeadData[[#This Row],[การคาดการณ์ \nปิด]] <>\"\",IF(LeadData[[#This Row],[การคาดการณ์ \nปิด]] = \"กันยายน\",LeadData[น้ำหนัก \nการคาดการณ์],0),\"\"),\"\")","v":{"v":0,"d":"฿0"}},{"$f":"IFERROR(IF(LeadData[[#This Row],[การคาดการณ์ \nปิด]] <>\"\",IF(LeadData[[#This Row],[การคาดการณ์ \nปิด]] = \"ตุลาคม\",LeadData[น้ำหนัก \nการคาดการณ์],0),\"\"),\"\")","v":{"v":0,"d":"฿0"}},{"$f":"IFERROR(IF(LeadData[[#This Row],[การคาดการณ์ \nปิด]] <>\"\",IF(LeadData[[#This Row],[การคาดการณ์ \nปิด]] = \"พฤศจิกายน\",LeadData[น้ำหนัก \nการคาดการณ์],0),\"\"),\"\")","v":{"v":0,"d":"฿0"}},{"$f":"IFERROR(IF(LeadData[[#This Row],[การคาดการณ์ \nปิด]] <>\"\",IF(LeadData[[#This Row],[การคาดการณ์ \nปิด]] = \"ธันวาคม\",LeadData[น้ำหนัก \nการคาดการณ์],0),\"\"),\"\")","v":{"v":0,"d":"฿0"}}]
[null,{"$f":"IFERROR(IF(AND(LeadData[[#This Row],[ชื่อลูกค้าเป้าหมาย]] <> \"\", ROW(ForecastedSales[ชื่อลูกค้าเป้าหมาย])<>การป้อนข้อมูลล่าสุด),LeadData[ชื่อลูกค้าเป้าหมาย], \"\"),\"\")","v":""},{"$f":"IFERROR(IF(LeadData[[#This Row],[การคาดการณ์ \nปิด]] <>\"\",IF(LeadData[[#This Row],[การคาดการณ์ \nปิด]]= \"มกราคม\",LeadData[น้ำหนัก \nการคาดการณ์],0),\"\"),\"\")","v":""},{"$f":"IFERROR(IF(LeadData[[#This Row],[การคาดการณ์ \nปิด]] <>\"\",IF(LeadData[[#This Row],[การคาดการณ์ \nปิด]] = \"กุมภาพันธ์\",LeadData[น้ำหนัก \nการคาดการณ์],0),\"\"),\"\")","v":""},{"$f":"IFERROR(IF(LeadData[[#This Row],[การคาดการณ์ \nปิด]] <>\"\",IF(LeadData[[#This Row],[การคาดการณ์ \nปิด]] = \"มีนาคม\",LeadData[น้ำหนัก \nการคาดการณ์],0),\"\"),\"\")","v":""},{"$f":"IFERROR(IF(LeadData[[#This Row],[การคาดการณ์ \nปิด]] <>\"\",IF(LeadData[[#This Row],[การคาดการณ์ \nปิด]] = \"เมษายน\",LeadData[น้ำหนัก \nการคาดการณ์],0),\"\"),\"\")","v":""},{"$f":"IFERROR(IF(LeadData[[#This Row],[การคาดการณ์ \nปิด]] <>\"\",IF(LeadData[[#This Row],[การคาดการณ์ \nปิด]] = \"พฤษภาคม\",LeadData[น้ำหนัก \nการคาดการณ์],0),\"\"),\"\")","v":""},{"$f":"IFERROR(IF(LeadData[[#This Row],[การคาดการณ์ \nปิด]] <>\"\",IF(LeadData[[#This Row],[การคาดการณ์ \nปิด]] = \"มิถุนายน\",LeadData[น้ำหนัก \nการคาดการณ์],0),\"\"),\"\")","v":""},{"$f":"IFERROR(IF(LeadData[[#This Row],[การคาดการณ์ \nปิด]] <>\"\",IF(LeadData[[#This Row],[การคาดการณ์ \nปิด]] = \"July\",LeadData[น้ำหนัก \nการคาดการณ์],0),\"\"),\"\")","v":""},{"$f":"IFERROR(IF(LeadData[[#This Row],[การคาดการณ์ \nปิด]] <>\"\",IF(LeadData[[#This Row],[การคาดการณ์ \nปิด]] = \"สิงหาคม\",LeadData[น้ำหนัก \nการคาดการณ์],0),\"\"),\"\")","v":""},{"$f":"IFERROR(IF(LeadData[[#This Row],[การคาดการณ์ \nปิด]] <>\"\",IF(LeadData[[#This Row],[การคาดการณ์ \nปิด]] = \"กันยายน\",LeadData[น้ำหนัก \nการคาดการณ์],0),\"\"),\"\")","v":""},{"$f":"IFERROR(IF(LeadData[[#This Row],[การคาดการณ์ \nปิด]] <>\"\",IF(LeadData[[#This Row],[การคาดการณ์ \nปิด]] = \"ตุลาคม\",LeadData[น้ำหนัก \nการคาดการณ์],0),\"\"),\"\")","v":""},{"$f":"IFERROR(IF(LeadData[[#This Row],[การคาดการณ์ \nปิด]] <>\"\",IF(LeadData[[#This Row],[การคาดการณ์ \nปิด]] = \"พฤศจิกายน\",LeadData[น้ำหนัก \nการคาดการณ์],0),\"\"),\"\")","v":""},{"$f":"IFERROR(IF(LeadData[[#This Row],[การคาดการณ์ \nปิด]] <>\"\",IF(LeadData[[#This Row],[การคาดการณ์ \nปิด]] = \"ธันวาคม\",LeadData[น้ำหนัก \nการคาดการณ์],0),\"\"),\"\")","v":""}]
[null,{"$f":"IFERROR(IF(AND(LeadData[[#This Row],[ชื่อลูกค้าเป้าหมาย]] <> \"\", ROW(ForecastedSales[ชื่อลูกค้าเป้าหมาย])<>การป้อนข้อมูลล่าสุด),LeadData[ชื่อลูกค้าเป้าหมาย], \"\"),\"\")","v":""},{"$f":"IFERROR(IF(LeadData[[#This Row],[การคาดการณ์ \nปิด]] <>\"\",IF(LeadData[[#This Row],[การคาดการณ์ \nปิด]]= \"มกราคม\",LeadData[น้ำหนัก \nการคาดการณ์],0),\"\"),\"\")","v":""},{"$f":"IFERROR(IF(LeadData[[#This Row],[การคาดการณ์ \nปิด]] <>\"\",IF(LeadData[[#This Row],[การคาดการณ์ \nปิด]] = \"กุมภาพันธ์\",LeadData[น้ำหนัก \nการคาดการณ์],0),\"\"),\"\")","v":""},{"$f":"IFERROR(IF(LeadData[[#This Row],[การคาดการณ์ \nปิด]] <>\"\",IF(LeadData[[#This Row],[การคาดการณ์ \nปิด]] = \"มีนาคม\",LeadData[น้ำหนัก \nการคาดการณ์],0),\"\"),\"\")","v":""},{"$f":"IFERROR(IF(LeadData[[#This Row],[การคาดการณ์ \nปิด]] <>\"\",IF(LeadData[[#This Row],[การคาดการณ์ \nปิด]] = \"เมษายน\",LeadData[น้ำหนัก \nการคาดการณ์],0),\"\"),\"\")","v":""},{"$f":"IFERROR(IF(LeadData[[#This Row],[การคาดการณ์ \nปิด]] <>\"\",IF(LeadData[[#This Row],[การคาดการณ์ \nปิด]] = \"พฤษภาคม\",LeadData[น้ำหนัก \nการคาดการณ์],0),\"\"),\"\")","v":""},{"$f":"IFERROR(IF(LeadData[[#This Row],[การคาดการณ์ \nปิด]] <>\"\",IF(LeadData[[#This Row],[การคาดการณ์ \nปิด]] = \"มิถุนายน\",LeadData[น้ำหนัก \nการคาดการณ์],0),\"\"),\"\")","v":""},{"$f":"IFERROR(IF(LeadData[[#This Row],[การคาดการณ์ \nปิด]] <>\"\",IF(LeadData[[#This Row],[การคาดการณ์ \nปิด]] = \"July\",LeadData[น้ำหนัก \nการคาดการณ์],0),\"\"),\"\")","v":""},{"$f":"IFERROR(IF(LeadData[[#This Row],[การคาดการณ์ \nปิด]] <>\"\",IF(LeadData[[#This Row],[การคาดการณ์ \nปิด]] = \"สิงหาคม\",LeadData[น้ำหนัก \nการคาดการณ์],0),\"\"),\"\")","v":""},{"$f":"IFERROR(IF(LeadData[[#This Row],[การคาดการณ์ \nปิด]] <>\"\",IF(LeadData[[#This Row],[การคาดการณ์ \nปิด]] = \"กันยายน\",LeadData[น้ำหนัก \nการคาดการณ์],0),\"\"),\"\")","v":""},{"$f":"IFERROR(IF(LeadData[[#This Row],[การคาดการณ์ \nปิด]] <>\"\",IF(LeadData[[#This Row],[การคาดการณ์ \nปิด]] = \"ตุลาคม\",LeadData[น้ำหนัก \nการคาดการณ์],0),\"\"),\"\")","v":""},{"$f":"IFERROR(IF(LeadData[[#This Row],[การคาดการณ์ \nปิด]] <>\"\",IF(LeadData[[#This Row],[การคาดการณ์ \nปิด]] = \"พฤศจิกายน\",LeadData[น้ำหนัก \nการคาดการณ์],0),\"\"),\"\")","v":""},{"$f":"IFERROR(IF(LeadData[[#This Row],[การคาดการณ์ \nปิด]] <>\"\",IF(LeadData[[#This Row],[การคาดการณ์ \nปิด]] = \"ธันวาคม\",LeadData[น้ำหนัก \nการคาดการณ์],0),\"\"),\"\")","v":""}]
[null,{"$f":"IFERROR(IF(AND(LeadData[[#This Row],[ชื่อลูกค้าเป้าหมาย]] <> \"\", ROW(ForecastedSales[ชื่อลูกค้าเป้าหมาย])<>การป้อนข้อมูลล่าสุด),LeadData[ชื่อลูกค้าเป้าหมาย], \"\"),\"\")","v":""},{"$f":"IFERROR(IF(LeadData[[#This Row],[การคาดการณ์ \nปิด]] <>\"\",IF(LeadData[[#This Row],[การคาดการณ์ \nปิด]]= \"มกราคม\",LeadData[น้ำหนัก \nการคาดการณ์],0),\"\"),\"\")","v":""},{"$f":"IFERROR(IF(LeadData[[#This Row],[การคาดการณ์ \nปิด]] <>\"\",IF(LeadData[[#This Row],[การคาดการณ์ \nปิด]] = \"กุมภาพันธ์\",LeadData[น้ำหนัก \nการคาดการณ์],0),\"\"),\"\")","v":""},{"$f":"IFERROR(IF(LeadData[[#This Row],[การคาดการณ์ \nปิด]] <>\"\",IF(LeadData[[#This Row],[การคาดการณ์ \nปิด]] = \"มีนาคม\",LeadData[น้ำหนัก \nการคาดการณ์],0),\"\"),\"\")","v":""},{"$f":"IFERROR(IF(LeadData[[#This Row],[การคาดการณ์ \nปิด]] <>\"\",IF(LeadData[[#This Row],[การคาดการณ์ \nปิด]] = \"เมษายน\",LeadData[น้ำหนัก \nการคาดการณ์],0),\"\"),\"\")","v":""},{"$f":"IFERROR(IF(LeadData[[#This Row],[การคาดการณ์ \nปิด]] <>\"\",IF(LeadData[[#This Row],[การคาดการณ์ \nปิด]] = \"พฤษภาคม\",LeadData[น้ำหนัก \nการคาดการณ์],0),\"\"),\"\")","v":""},{"$f":"IFERROR(IF(LeadData[[#This Row],[การคาดการณ์ \nปิด]] <>\"\",IF(LeadData[[#This Row],[การคาดการณ์ \nปิด]] = \"มิถุนายน\",LeadData[น้ำหนัก \nการคาดการณ์],0),\"\"),\"\")","v":""},{"$f":"IFERROR(IF(LeadData[[#This Row],[การคาดการณ์ \nปิด]] <>\"\",IF(LeadData[[#This Row],[การคาดการณ์ \nปิด]] = \"July\",LeadData[น้ำหนัก \nการคาดการณ์],0),\"\"),\"\")","v":""},{"$f":"IFERROR(IF(LeadData[[#This Row],[การคาดการณ์ \nปิด]] <>\"\",IF(LeadData[[#This Row],[การคาดการณ์ \nปิด]] = \"สิงหาคม\",LeadData[น้ำหนัก \nการคาดการณ์],0),\"\"),\"\")","v":""},{"$f":"IFERROR(IF(LeadData[[#This Row],[การคาดการณ์ \nปิด]] <>\"\",IF(LeadData[[#This Row],[การคาดการณ์ \nปิด]] = \"กันยายน\",LeadData[น้ำหนัก \nการคาดการณ์],0),\"\"),\"\")","v":""},{"$f":"IFERROR(IF(LeadData[[#This Row],[การคาดการณ์ \nปิด]] <>\"\",IF(LeadData[[#This Row],[การคาดการณ์ \nปิด]] = \"ตุลาคม\",LeadData[น้ำหนัก \nการคาดการณ์],0),\"\"),\"\")","v":""},{"$f":"IFERROR(IF(LeadData[[#This Row],[การคาดการณ์ \nปิด]] <>\"\",IF(LeadData[[#This Row],[การคาดการณ์ \nปิด]] = \"พฤศจิกายน\",LeadData[น้ำหนัก \nการคาดการณ์],0),\"\"),\"\")","v":""},{"$f":"IFERROR(IF(LeadData[[#This Row],[การคาดการณ์ \nปิด]] <>\"\",IF(LeadData[[#This Row],[การคาดการณ์ \nปิด]] = \"ธันวาคม\",LeadData[น้ำหนัก \nการคาดการณ์],0),\"\"),\"\")","v":""}]
[null,{"$f":"IFERROR(IF(AND(LeadData[[#This Row],[ชื่อลูกค้าเป้าหมาย]] <> \"\", ROW(ForecastedSales[ชื่อลูกค้าเป้าหมาย])<>การป้อนข้อมูลล่าสุด),LeadData[ชื่อลูกค้าเป้าหมาย], \"\"),\"\")","v":""},{"$f":"IFERROR(IF(LeadData[[#This Row],[การคาดการณ์ \nปิด]] <>\"\",IF(LeadData[[#This Row],[การคาดการณ์ \nปิด]]= \"มกราคม\",LeadData[น้ำหนัก \nการคาดการณ์],0),\"\"),\"\")","v":""},{"$f":"IFERROR(IF(LeadData[[#This Row],[การคาดการณ์ \nปิด]] <>\"\",IF(LeadData[[#This Row],[การคาดการณ์ \nปิด]] = \"กุมภาพันธ์\",LeadData[น้ำหนัก \nการคาดการณ์],0),\"\"),\"\")","v":""},{"$f":"IFERROR(IF(LeadData[[#This Row],[การคาดการณ์ \nปิด]] <>\"\",IF(LeadData[[#This Row],[การคาดการณ์ \nปิด]] = \"มีนาคม\",LeadData[น้ำหนัก \nการคาดการณ์],0),\"\"),\"\")","v":""},{"$f":"IFERROR(IF(LeadData[[#This Row],[การคาดการณ์ \nปิด]] <>\"\",IF(LeadData[[#This Row],[การคาดการณ์ \nปิด]] = \"เมษายน\",LeadData[น้ำหนัก \nการคาดการณ์],0),\"\"),\"\")","v":""},{"$f":"IFERROR(IF(LeadData[[#This Row],[การคาดการณ์ \nปิด]] <>\"\",IF(LeadData[[#This Row],[การคาดการณ์ \nปิด]] = \"พฤษภาคม\",LeadData[น้ำหนัก \nการคาดการณ์],0),\"\"),\"\")","v":""},{"$f":"IFERROR(IF(LeadData[[#This Row],[การคาดการณ์ \nปิด]] <>\"\",IF(LeadData[[#This Row],[การคาดการณ์ \nปิด]] = \"มิถุนายน\",LeadData[น้ำหนัก \nการคาดการณ์],0),\"\"),\"\")","v":""},{"$f":"IFERROR(IF(LeadData[[#This Row],[การคาดการณ์ \nปิด]] <>\"\",IF(LeadData[[#This Row],[การคาดการณ์ \nปิด]] = \"July\",LeadData[น้ำหนัก \nการคาดการณ์],0),\"\"),\"\")","v":""},{"$f":"IFERROR(IF(LeadData[[#This Row],[การคาดการณ์ \nปิด]] <>\"\",IF(LeadData[[#This Row],[การคาดการณ์ \nปิด]] = \"สิงหาคม\",LeadData[น้ำหนัก \nการคาดการณ์],0),\"\"),\"\")","v":""},{"$f":"IFERROR(IF(LeadData[[#This Row],[การคาดการณ์ \nปิด]] <>\"\",IF(LeadData[[#This Row],[การคาดการณ์ \nปิด]] = \"กันยายน\",LeadData[น้ำหนัก \nการคาดการณ์],0),\"\"),\"\")","v":""},{"$f":"IFERROR(IF(LeadData[[#This Row],[การคาดการณ์ \nปิด]] <>\"\",IF(LeadData[[#This Row],[การคาดการณ์ \nปิด]] = \"ตุลาคม\",LeadData[น้ำหนัก \nการคาดการณ์],0),\"\"),\"\")","v":""},{"$f":"IFERROR(IF(LeadData[[#This Row],[การคาดการณ์ \nปิด]] <>\"\",IF(LeadData[[#This Row],[การคาดการณ์ \nปิด]] = \"พฤศจิกายน\",LeadData[น้ำหนัก \nการคาดการณ์],0),\"\"),\"\")","v":""},{"$f":"IFERROR(IF(LeadData[[#This Row],[การคาดการณ์ \nปิด]] <>\"\",IF(LeadData[[#This Row],[การคาดการณ์ \nปิด]] = \"ธันวาคม\",LeadData[น้ำหนัก \nการคาดการณ์],0),\"\"),\"\")","v":""}]
[null,{"$f":"IFERROR(IF(AND(LeadData[[#This Row],[ชื่อลูกค้าเป้าหมาย]] <> \"\", ROW(ForecastedSales[ชื่อลูกค้าเป้าหมาย])<>การป้อนข้อมูลล่าสุด),LeadData[ชื่อลูกค้าเป้าหมาย], \"\"),\"\")","v":""},{"$f":"IFERROR(IF(LeadData[[#This Row],[การคาดการณ์ \nปิด]] <>\"\",IF(LeadData[[#This Row],[การคาดการณ์ \nปิด]]= \"มกราคม\",LeadData[น้ำหนัก \nการคาดการณ์],0),\"\"),\"\")","v":""},{"$f":"IFERROR(IF(LeadData[[#This Row],[การคาดการณ์ \nปิด]] <>\"\",IF(LeadData[[#This Row],[การคาดการณ์ \nปิด]] = \"กุมภาพันธ์\",LeadData[น้ำหนัก \nการคาดการณ์],0),\"\"),\"\")","v":""},{"$f":"IFERROR(IF(LeadData[[#This Row],[การคาดการณ์ \nปิด]] <>\"\",IF(LeadData[[#This Row],[การคาดการณ์ \nปิด]] = \"มีนาคม\",LeadData[น้ำหนัก \nการคาดการณ์],0),\"\"),\"\")","v":""},{"$f":"IFERROR(IF(LeadData[[#This Row],[การคาดการณ์ \nปิด]] <>\"\",IF(LeadData[[#This Row],[การคาดการณ์ \nปิด]] = \"เมษายน\",LeadData[น้ำหนัก \nการคาดการณ์],0),\"\"),\"\")","v":""},{"$f":"IFERROR(IF(LeadData[[#This Row],[การคาดการณ์ \nปิด]] <>\"\",IF(LeadData[[#This Row],[การคาดการณ์ \nปิด]] = \"พฤษภาคม\",LeadData[น้ำหนัก \nการคาดการณ์],0),\"\"),\"\")","v":""},{"$f":"IFERROR(IF(LeadData[[#This Row],[การคาดการณ์ \nปิด]] <>\"\",IF(LeadData[[#This Row],[การคาดการณ์ \nปิด]] = \"มิถุนายน\",LeadData[น้ำหนัก \nการคาดการณ์],0),\"\"),\"\")","v":""},{"$f":"IFERROR(IF(LeadData[[#This Row],[การคาดการณ์ \nปิด]] <>\"\",IF(LeadData[[#This Row],[การคาดการณ์ \nปิด]] = \"July\",LeadData[น้ำหนัก \nการคาดการณ์],0),\"\"),\"\")","v":""},{"$f":"IFERROR(IF(LeadData[[#This Row],[การคาดการณ์ \nปิด]] <>\"\",IF(LeadData[[#This Row],[การคาดการณ์ \nปิด]] = \"สิงหาคม\",LeadData[น้ำหนัก \nการคาดการณ์],0),\"\"),\"\")","v":""},{"$f":"IFERROR(IF(LeadData[[#This Row],[การคาดการณ์ \nปิด]] <>\"\",IF(LeadData[[#This Row],[การคาดการณ์ \nปิด]] = \"กันยายน\",LeadData[น้ำหนัก \nการคาดการณ์],0),\"\"),\"\")","v":""},{"$f":"IFERROR(IF(LeadData[[#This Row],[การคาดการณ์ \nปิด]] <>\"\",IF(LeadData[[#This Row],[การคาดการณ์ \nปิด]] = \"ตุลาคม\",LeadData[น้ำหนัก \nการคาดการณ์],0),\"\"),\"\")","v":""},{"$f":"IFERROR(IF(LeadData[[#This Row],[การคาดการณ์ \nปิด]] <>\"\",IF(LeadData[[#This Row],[การคาดการณ์ \nปิด]] = \"พฤศจิกายน\",LeadData[น้ำหนัก \nการคาดการณ์],0),\"\"),\"\")","v":""},{"$f":"IFERROR(IF(LeadData[[#This Row],[การคาดการณ์ \nปิด]] <>\"\",IF(LeadData[[#This Row],[การคาดการณ์ \nปิด]] = \"ธันวาคม\",LeadData[น้ำหนัก \nการคาดการณ์],0),\"\"),\"\")","v":""}]
[null,{"$f":"IFERROR(IF(AND(LeadData[[#This Row],[ชื่อลูกค้าเป้าหมาย]] <> \"\", ROW(ForecastedSales[ชื่อลูกค้าเป้าหมาย])<>การป้อนข้อมูลล่าสุด),LeadData[ชื่อลูกค้าเป้าหมาย], \"\"),\"\")","v":""},{"$f":"IFERROR(IF(LeadData[[#This Row],[การคาดการณ์ \nปิด]] <>\"\",IF(LeadData[[#This Row],[การคาดการณ์ \nปิด]]= \"มกราคม\",LeadData[น้ำหนัก \nการคาดการณ์],0),\"\"),\"\")","v":""},{"$f":"IFERROR(IF(LeadData[[#This Row],[การคาดการณ์ \nปิด]] <>\"\",IF(LeadData[[#This Row],[การคาดการณ์ \nปิด]] = \"กุมภาพันธ์\",LeadData[น้ำหนัก \nการคาดการณ์],0),\"\"),\"\")","v":""},{"$f":"IFERROR(IF(LeadData[[#This Row],[การคาดการณ์ \nปิด]] <>\"\",IF(LeadData[[#This Row],[การคาดการณ์ \nปิด]] = \"มีนาคม\",LeadData[น้ำหนัก \nการคาดการณ์],0),\"\"),\"\")","v":""},{"$f":"IFERROR(IF(LeadData[[#This Row],[การคาดการณ์ \nปิด]] <>\"\",IF(LeadData[[#This Row],[การคาดการณ์ \nปิด]] = \"เมษายน\",LeadData[น้ำหนัก \nการคาดการณ์],0),\"\"),\"\")","v":""},{"$f":"IFERROR(IF(LeadData[[#This Row],[การคาดการณ์ \nปิด]] <>\"\",IF(LeadData[[#This Row],[การคาดการณ์ \nปิด]] = \"พฤษภาคม\",LeadData[น้ำหนัก \nการคาดการณ์],0),\"\"),\"\")","v":""},{"$f":"IFERROR(IF(LeadData[[#This Row],[การคาดการณ์ \nปิด]] <>\"\",IF(LeadData[[#This Row],[การคาดการณ์ \nปิด]] = \"มิถุนายน\",LeadData[น้ำหนัก \nการคาดการณ์],0),\"\"),\"\")","v":""},{"$f":"IFERROR(IF(LeadData[[#This Row],[การคาดการณ์ \nปิด]] <>\"\",IF(LeadData[[#This Row],[การคาดการณ์ \nปิด]] = \"July\",LeadData[น้ำหนัก \nการคาดการณ์],0),\"\"),\"\")","v":""},{"$f":"IFERROR(IF(LeadData[[#This Row],[การคาดการณ์ \nปิด]] <>\"\",IF(LeadData[[#This Row],[การคาดการณ์ \nปิด]] = \"สิงหาคม\",LeadData[น้ำหนัก \nการคาดการณ์],0),\"\"),\"\")","v":""},{"$f":"IFERROR(IF(LeadData[[#This Row],[การคาดการณ์ \nปิด]] <>\"\",IF(LeadData[[#This Row],[การคาดการณ์ \nปิด]] = \"กันยายน\",LeadData[น้ำหนัก \nการคาดการณ์],0),\"\"),\"\")","v":""},{"$f":"IFERROR(IF(LeadData[[#This Row],[การคาดการณ์ \nปิด]] <>\"\",IF(LeadData[[#This Row],[การคาดการณ์ \nปิด]] = \"ตุลาคม\",LeadData[น้ำหนัก \nการคาดการณ์],0),\"\"),\"\")","v":""},{"$f":"IFERROR(IF(LeadData[[#This Row],[การคาดการณ์ \nปิด]] <>\"\",IF(LeadData[[#This Row],[การคาดการณ์ \nปิด]] = \"พฤศจิกายน\",LeadData[น้ำหนัก \nการคาดการณ์],0),\"\"),\"\")","v":""},{"$f":"IFERROR(IF(LeadData[[#This Row],[การคาดการณ์ \nปิด]] <>\"\",IF(LeadData[[#This Row],[การคาดการณ์ \nปิด]] = \"ธันวาคม\",LeadData[น้ำหนัก \nการคาดการณ์],0),\"\"),\"\")","v":""}]
[null,{"$f":"IFERROR(IF(AND(LeadData[[#This Row],[ชื่อลูกค้าเป้าหมาย]] <> \"\", ROW(ForecastedSales[ชื่อลูกค้าเป้าหมาย])<>การป้อนข้อมูลล่าสุด),LeadData[ชื่อลูกค้าเป้าหมาย], \"\"),\"\")","v":""},{"$f":"IFERROR(IF(LeadData[[#This Row],[การคาดการณ์ \nปิด]] <>\"\",IF(LeadData[[#This Row],[การคาดการณ์ \nปิด]]= \"มกราคม\",LeadData[น้ำหนัก \nการคาดการณ์],0),\"\"),\"\")","v":""},{"$f":"IFERROR(IF(LeadData[[#This Row],[การคาดการณ์ \nปิด]] <>\"\",IF(LeadData[[#This Row],[การคาดการณ์ \nปิด]] = \"กุมภาพันธ์\",LeadData[น้ำหนัก \nการคาดการณ์],0),\"\"),\"\")","v":""},{"$f":"IFERROR(IF(LeadData[[#This Row],[การคาดการณ์ \nปิด]] <>\"\",IF(LeadData[[#This Row],[การคาดการณ์ \nปิด]] = \"มีนาคม\",LeadData[น้ำหนัก \nการคาดการณ์],0),\"\"),\"\")","v":""},{"$f":"IFERROR(IF(LeadData[[#This Row],[การคาดการณ์ \nปิด]] <>\"\",IF(LeadData[[#This Row],[การคาดการณ์ \nปิด]] = \"เมษายน\",LeadData[น้ำหนัก \nการคาดการณ์],0),\"\"),\"\")","v":""},{"$f":"IFERROR(IF(LeadData[[#This Row],[การคาดการณ์ \nปิด]] <>\"\",IF(LeadData[[#This Row],[การคาดการณ์ \nปิด]] = \"พฤษภาคม\",LeadData[น้ำหนัก \nการคาดการณ์],0),\"\"),\"\")","v":""},{"$f":"IFERROR(IF(LeadData[[#This Row],[การคาดการณ์ \nปิด]] <>\"\",IF(LeadData[[#This Row],[การคาดการณ์ \nปิด]] = \"มิถุนายน\",LeadData[น้ำหนัก \nการคาดการณ์],0),\"\"),\"\")","v":""},{"$f":"IFERROR(IF(LeadData[[#This Row],[การคาดการณ์ \nปิด]] <>\"\",IF(LeadData[[#This Row],[การคาดการณ์ \nปิด]] = \"July\",LeadData[น้ำหนัก \nการคาดการณ์],0),\"\"),\"\")","v":""},{"$f":"IFERROR(IF(LeadData[[#This Row],[การคาดการณ์ \nปิด]] <>\"\",IF(LeadData[[#This Row],[การคาดการณ์ \nปิด]] = \"สิงหาคม\",LeadData[น้ำหนัก \nการคาดการณ์],0),\"\"),\"\")","v":""},{"$f":"IFERROR(IF(LeadData[[#This Row],[การคาดการณ์ \nปิด]] <>\"\",IF(LeadData[[#This Row],[การคาดการณ์ \nปิด]] = \"กันยายน\",LeadData[น้ำหนัก \nการคาดการณ์],0),\"\"),\"\")","v":""},{"$f":"IFERROR(IF(LeadData[[#This Row],[การคาดการณ์ \nปิด]] <>\"\",IF(LeadData[[#This Row],[การคาดการณ์ \nปิด]] = \"ตุลาคม\",LeadData[น้ำหนัก \nการคาดการณ์],0),\"\"),\"\")","v":""},{"$f":"IFERROR(IF(LeadData[[#This Row],[การคาดการณ์ \nปิด]] <>\"\",IF(LeadData[[#This Row],[การคาดการณ์ \nปิด]] = \"พฤศจิกายน\",LeadData[น้ำหนัก \nการคาดการณ์],0),\"\"),\"\")","v":""},{"$f":"IFERROR(IF(LeadData[[#This Row],[การคาดการณ์ \nปิด]] <>\"\",IF(LeadData[[#This Row],[การคาดการณ์ \nปิด]] = \"ธันวาคม\",LeadData[น้ำหนัก \nการคาดการณ์],0),\"\"),\"\")","v":""}]
[null,{"$f":"IFERROR(IF(AND(LeadData[[#This Row],[ชื่อลูกค้าเป้าหมาย]] <> \"\", ROW(ForecastedSales[ชื่อลูกค้าเป้าหมาย])<>การป้อนข้อมูลล่าสุด),LeadData[ชื่อลูกค้าเป้าหมาย], \"\"),\"\")","v":""},{"$f":"IFERROR(IF(LeadData[[#This Row],[การคาดการณ์ \nปิด]] <>\"\",IF(LeadData[[#This Row],[การคาดการณ์ \nปิด]]= \"มกราคม\",LeadData[น้ำหนัก \nการคาดการณ์],0),\"\"),\"\")","v":""},{"$f":"IFERROR(IF(LeadData[[#This Row],[การคาดการณ์ \nปิด]] <>\"\",IF(LeadData[[#This Row],[การคาดการณ์ \nปิด]] = \"กุมภาพันธ์\",LeadData[น้ำหนัก \nการคาดการณ์],0),\"\"),\"\")","v":""},{"$f":"IFERROR(IF(LeadData[[#This Row],[การคาดการณ์ \nปิด]] <>\"\",IF(LeadData[[#This Row],[การคาดการณ์ \nปิด]] = \"มีนาคม\",LeadData[น้ำหนัก \nการคาดการณ์],0),\"\"),\"\")","v":""},{"$f":"IFERROR(IF(LeadData[[#This Row],[การคาดการณ์ \nปิด]] <>\"\",IF(LeadData[[#This Row],[การคาดการณ์ \nปิด]] = \"เมษายน\",LeadData[น้ำหนัก \nการคาดการณ์],0),\"\"),\"\")","v":""},{"$f":"IFERROR(IF(LeadData[[#This Row],[การคาดการณ์ \nปิด]] <>\"\",IF(LeadData[[#This Row],[การคาดการณ์ \nปิด]] = \"พฤษภาคม\",LeadData[น้ำหนัก \nการคาดการณ์],0),\"\"),\"\")","v":""},{"$f":"IFERROR(IF(LeadData[[#This Row],[การคาดการณ์ \nปิด]] <>\"\",IF(LeadData[[#This Row],[การคาดการณ์ \nปิด]] = \"มิถุนายน\",LeadData[น้ำหนัก \nการคาดการณ์],0),\"\"),\"\")","v":""},{"$f":"IFERROR(IF(LeadData[[#This Row],[การคาดการณ์ \nปิด]] <>\"\",IF(LeadData[[#This Row],[การคาดการณ์ \nปิด]] = \"July\",LeadData[น้ำหนัก \nการคาดการณ์],0),\"\"),\"\")","v":""},{"$f":"IFERROR(IF(LeadData[[#This Row],[การคาดการณ์ \nปิด]] <>\"\",IF(LeadData[[#This Row],[การคาดการณ์ \nปิด]] = \"สิงหาคม\",LeadData[น้ำหนัก \nการคาดการณ์],0),\"\"),\"\")","v":""},{"$f":"IFERROR(IF(LeadData[[#This Row],[การคาดการณ์ \nปิด]] <>\"\",IF(LeadData[[#This Row],[การคาดการณ์ \nปิด]] = \"กันยายน\",LeadData[น้ำหนัก \nการคาดการณ์],0),\"\"),\"\")","v":""},{"$f":"IFERROR(IF(LeadData[[#This Row],[การคาดการณ์ \nปิด]] <>\"\",IF(LeadData[[#This Row],[การคาดการณ์ \nปิด]] = \"ตุลาคม\",LeadData[น้ำหนัก \nการคาดการณ์],0),\"\"),\"\")","v":""},{"$f":"IFERROR(IF(LeadData[[#This Row],[การคาดการณ์ \nปิด]] <>\"\",IF(LeadData[[#This Row],[การคาดการณ์ \nปิด]] = \"พฤศจิกายน\",LeadData[น้ำหนัก \nการคาดการณ์],0),\"\"),\"\")","v":""},{"$f":"IFERROR(IF(LeadData[[#This Row],[การคาดการณ์ \nปิด]] <>\"\",IF(LeadData[[#This Row],[การคาดการณ์ \nปิด]] = \"ธันวาคม\",LeadData[น้ำหนัก \nการคาดการณ์],0),\"\"),\"\")","v":""}]
[null,{"$f":"IFERROR(IF(AND(LeadData[[#This Row],[ชื่อลูกค้าเป้าหมาย]] <> \"\", ROW(ForecastedSales[ชื่อลูกค้าเป้าหมาย])<>การป้อนข้อมูลล่าสุด),LeadData[ชื่อลูกค้าเป้าหมาย], \"\"),\"\")","v":""},{"$f":"IFERROR(IF(LeadData[[#This Row],[การคาดการณ์ \nปิด]] <>\"\",IF(LeadData[[#This Row],[การคาดการณ์ \nปิด]]= \"มกราคม\",LeadData[น้ำหนัก \nการคาดการณ์],0),\"\"),\"\")","v":""},{"$f":"IFERROR(IF(LeadData[[#This Row],[การคาดการณ์ \nปิด]] <>\"\",IF(LeadData[[#This Row],[การคาดการณ์ \nปิด]] = \"กุมภาพันธ์\",LeadData[น้ำหนัก \nการคาดการณ์],0),\"\"),\"\")","v":""},{"$f":"IFERROR(IF(LeadData[[#This Row],[การคาดการณ์ \nปิด]] <>\"\",IF(LeadData[[#This Row],[การคาดการณ์ \nปิด]] = \"มีนาคม\",LeadData[น้ำหนัก \nการคาดการณ์],0),\"\"),\"\")","v":""},{"$f":"IFERROR(IF(LeadData[[#This Row],[การคาดการณ์ \nปิด]] <>\"\",IF(LeadData[[#This Row],[การคาดการณ์ \nปิด]] = \"เมษายน\",LeadData[น้ำหนัก \nการคาดการณ์],0),\"\"),\"\")","v":""},{"$f":"IFERROR(IF(LeadData[[#This Row],[การคาดการณ์ \nปิด]] <>\"\",IF(LeadData[[#This Row],[การคาดการณ์ \nปิด]] = \"พฤษภาคม\",LeadData[น้ำหนัก \nการคาดการณ์],0),\"\"),\"\")","v":""},{"$f":"IFERROR(IF(LeadData[[#This Row],[การคาดการณ์ \nปิด]] <>\"\",IF(LeadData[[#This Row],[การคาดการณ์ \nปิด]] = \"มิถุนายน\",LeadData[น้ำหนัก \nการคาดการณ์],0),\"\"),\"\")","v":""},{"$f":"IFERROR(IF(LeadData[[#This Row],[การคาดการณ์ \nปิด]] <>\"\",IF(LeadData[[#This Row],[การคาดการณ์ \nปิด]] = \"July\",LeadData[น้ำหนัก \nการคาดการณ์],0),\"\"),\"\")","v":""},{"$f":"IFERROR(IF(LeadData[[#This Row],[การคาดการณ์ \nปิด]] <>\"\",IF(LeadData[[#This Row],[การคาดการณ์ \nปิด]] = \"สิงหาคม\",LeadData[น้ำหนัก \nการคาดการณ์],0),\"\"),\"\")","v":""},{"$f":"IFERROR(IF(LeadData[[#This Row],[การคาดการณ์ \nปิด]] <>\"\",IF(LeadData[[#This Row],[การคาดการณ์ \nปิด]] = \"กันยายน\",LeadData[น้ำหนัก \nการคาดการณ์],0),\"\"),\"\")","v":""},{"$f":"IFERROR(IF(LeadData[[#This Row],[การคาดการณ์ \nปิด]] <>\"\",IF(LeadData[[#This Row],[การคาดการณ์ \nปิด]] = \"ตุลาคม\",LeadData[น้ำหนัก \nการคาดการณ์],0),\"\"),\"\")","v":""},{"$f":"IFERROR(IF(LeadData[[#This Row],[การคาดการณ์ \nปิด]] <>\"\",IF(LeadData[[#This Row],[การคาดการณ์ \nปิด]] = \"พฤศจิกายน\",LeadData[น้ำหนัก \nการคาดการณ์],0),\"\"),\"\")","v":""},{"$f":"IFERROR(IF(LeadData[[#This Row],[การคาดการณ์ \nปิด]] <>\"\",IF(LeadData[[#This Row],[การคาดการณ์ \nปิด]] = \"ธันวาคม\",LeadData[น้ำหนัก \nการคาดการณ์],0),\"\"),\"\")","v":""}]
[null,{"$f":"IFERROR(IF(AND(LeadData[[#This Row],[ชื่อลูกค้าเป้าหมาย]] <> \"\", ROW(ForecastedSales[ชื่อลูกค้าเป้าหมาย])<>การป้อนข้อมูลล่าสุด),LeadData[ชื่อลูกค้าเป้าหมาย], \"\"),\"\")","v":""},{"$f":"IFERROR(IF(LeadData[[#This Row],[การคาดการณ์ \nปิด]] <>\"\",IF(LeadData[[#This Row],[การคาดการณ์ \nปิด]]= \"มกราคม\",LeadData[น้ำหนัก \nการคาดการณ์],0),\"\"),\"\")","v":""},{"$f":"IFERROR(IF(LeadData[[#This Row],[การคาดการณ์ \nปิด]] <>\"\",IF(LeadData[[#This Row],[การคาดการณ์ \nปิด]] = \"กุมภาพันธ์\",LeadData[น้ำหนัก \nการคาดการณ์],0),\"\"),\"\")","v":""},{"$f":"IFERROR(IF(LeadData[[#This Row],[การคาดการณ์ \nปิด]] <>\"\",IF(LeadData[[#This Row],[การคาดการณ์ \nปิด]] = \"มีนาคม\",LeadData[น้ำหนัก \nการคาดการณ์],0),\"\"),\"\")","v":""},{"$f":"IFERROR(IF(LeadData[[#This Row],[การคาดการณ์ \nปิด]] <>\"\",IF(LeadData[[#This Row],[การคาดการณ์ \nปิด]] = \"เมษายน\",LeadData[น้ำหนัก \nการคาดการณ์],0),\"\"),\"\")","v":""},{"$f":"IFERROR(IF(LeadData[[#This Row],[การคาดการณ์ \nปิด]] <>\"\",IF(LeadData[[#This Row],[การคาดการณ์ \nปิด]] = \"พฤษภาคม\",LeadData[น้ำหนัก \nการคาดการณ์],0),\"\"),\"\")","v":""},{"$f":"IFERROR(IF(LeadData[[#This Row],[การคาดการณ์ \nปิด]] <>\"\",IF(LeadData[[#This Row],[การคาดการณ์ \nปิด]] = \"มิถุนายน\",LeadData[น้ำหนัก \nการคาดการณ์],0),\"\"),\"\")","v":""},{"$f":"IFERROR(IF(LeadData[[#This Row],[การคาดการณ์ \nปิด]] <>\"\",IF(LeadData[[#This Row],[การคาดการณ์ \nปิด]] = \"July\",LeadData[น้ำหนัก \nการคาดการณ์],0),\"\"),\"\")","v":""},{"$f":"IFERROR(IF(LeadData[[#This Row],[การคาดการณ์ \nปิด]] <>\"\",IF(LeadData[[#This Row],[การคาดการณ์ \nปิด]] = \"สิงหาคม\",LeadData[น้ำหนัก \nการคาดการณ์],0),\"\"),\"\")","v":""},{"$f":"IFERROR(IF(LeadData[[#This Row],[การคาดการณ์ \nปิด]] <>\"\",IF(LeadData[[#This Row],[การคาดการณ์ \nปิด]] = \"กันยายน\",LeadData[น้ำหนัก \nการคาดการณ์],0),\"\"),\"\")","v":""},{"$f":"IFERROR(IF(LeadData[[#This Row],[การคาดการณ์ \nปิด]] <>\"\",IF(LeadData[[#This Row],[การคาดการณ์ \nปิด]] = \"ตุลาคม\",LeadData[น้ำหนัก \nการคาดการณ์],0),\"\"),\"\")","v":""},{"$f":"IFERROR(IF(LeadData[[#This Row],[การคาดการณ์ \nปิด]] <>\"\",IF(LeadData[[#This Row],[การคาดการณ์ \nปิด]] = \"พฤศจิกายน\",LeadData[น้ำหนัก \nการคาดการณ์],0),\"\"),\"\")","v":""},{"$f":"IFERROR(IF(LeadData[[#This Row],[การคาดการณ์ \nปิด]] <>\"\",IF(LeadData[[#This Row],[การคาดการณ์ \nปิด]] = \"ธันวาคม\",LeadData[น้ำหนัก \nการคาดการณ์],0),\"\"),\"\")","v":""}]
[null,{"$f":"IFERROR(IF(AND(LeadData[[#This Row],[ชื่อลูกค้าเป้าหมาย]] <> \"\", ROW(ForecastedSales[ชื่อลูกค้าเป้าหมาย])<>การป้อนข้อมูลล่าสุด),LeadData[ชื่อลูกค้าเป้าหมาย], \"\"),\"\")","v":""},{"$f":"IFERROR(IF(LeadData[[#This Row],[การคาดการณ์ \nปิด]] <>\"\",IF(LeadData[[#This Row],[การคาดการณ์ \nปิด]]= \"มกราคม\",LeadData[น้ำหนัก \nการคาดการณ์],0),\"\"),\"\")","v":""},{"$f":"IFERROR(IF(LeadData[[#This Row],[การคาดการณ์ \nปิด]] <>\"\",IF(LeadData[[#This Row],[การคาดการณ์ \nปิด]] = \"กุมภาพันธ์\",LeadData[น้ำหนัก \nการคาดการณ์],0),\"\"),\"\")","v":""},{"$f":"IFERROR(IF(LeadData[[#This Row],[การคาดการณ์ \nปิด]] <>\"\",IF(LeadData[[#This Row],[การคาดการณ์ \nปิด]] = \"มีนาคม\",LeadData[น้ำหนัก \nการคาดการณ์],0),\"\"),\"\")","v":""},{"$f":"IFERROR(IF(LeadData[[#This Row],[การคาดการณ์ \nปิด]] <>\"\",IF(LeadData[[#This Row],[การคาดการณ์ \nปิด]] = \"เมษายน\",LeadData[น้ำหนัก \nการคาดการณ์],0),\"\"),\"\")","v":""},{"$f":"IFERROR(IF(LeadData[[#This Row],[การคาดการณ์ \nปิด]] <>\"\",IF(LeadData[[#This Row],[การคาดการณ์ \nปิด]] = \"พฤษภาคม\",LeadData[น้ำหนัก \nการคาดการณ์],0),\"\"),\"\")","v":""},{"$f":"IFERROR(IF(LeadData[[#This Row],[การคาดการณ์ \nปิด]] <>\"\",IF(LeadData[[#This Row],[การคาดการณ์ \nปิด]] = \"มิถุนายน\",LeadData[น้ำหนัก \nการคาดการณ์],0),\"\"),\"\")","v":""},{"$f":"IFERROR(IF(LeadData[[#This Row],[การคาดการณ์ \nปิด]] <>\"\",IF(LeadData[[#This Row],[การคาดการณ์ \nปิด]] = \"July\",LeadData[น้ำหนัก \nการคาดการณ์],0),\"\"),\"\")","v":""},{"$f":"IFERROR(IF(LeadData[[#This Row],[การคาดการณ์ \nปิด]] <>\"\",IF(LeadData[[#This Row],[การคาดการณ์ \nปิด]] = \"สิงหาคม\",LeadData[น้ำหนัก \nการคาดการณ์],0),\"\"),\"\")","v":""},{"$f":"IFERROR(IF(LeadData[[#This Row],[การคาดการณ์ \nปิด]] <>\"\",IF(LeadData[[#This Row],[การคาดการณ์ \nปิด]] = \"กันยายน\",LeadData[น้ำหนัก \nการคาดการณ์],0),\"\"),\"\")","v":""},{"$f":"IFERROR(IF(LeadData[[#This Row],[การคาดการณ์ \nปิด]] <>\"\",IF(LeadData[[#This Row],[การคาดการณ์ \nปิด]] = \"ตุลาคม\",LeadData[น้ำหนัก \nการคาดการณ์],0),\"\"),\"\")","v":""},{"$f":"IFERROR(IF(LeadData[[#This Row],[การคาดการณ์ \nปิด]] <>\"\",IF(LeadData[[#This Row],[การคาดการณ์ \nปิด]] = \"พฤศจิกายน\",LeadData[น้ำหนัก \nการคาดการณ์],0),\"\"),\"\")","v":""},{"$f":"IFERROR(IF(LeadData[[#This Row],[การคาดการณ์ \nปิด]] <>\"\",IF(LeadData[[#This Row],[การคาดการณ์ \nปิด]] = \"ธันวาคม\",LeadData[น้ำหนัก \nการคาดการณ์],0),\"\"),\"\")","v":""}]
[null,{"$f":"IFERROR(IF(AND(LeadData[[#This Row],[ชื่อลูกค้าเป้าหมาย]] <> \"\", ROW(ForecastedSales[ชื่อลูกค้าเป้าหมาย])<>การป้อนข้อมูลล่าสุด),LeadData[ชื่อลูกค้าเป้าหมาย], \"\"),\"\")","v":""},{"$f":"IFERROR(IF(LeadData[[#This Row],[การคาดการณ์ \nปิด]] <>\"\",IF(LeadData[[#This Row],[การคาดการณ์ \nปิด]]= \"มกราคม\",LeadData[น้ำหนัก \nการคาดการณ์],0),\"\"),\"\")","v":""},{"$f":"IFERROR(IF(LeadData[[#This Row],[การคาดการณ์ \nปิด]] <>\"\",IF(LeadData[[#This Row],[การคาดการณ์ \nปิด]] = \"กุมภาพันธ์\",LeadData[น้ำหนัก \nการคาดการณ์],0),\"\"),\"\")","v":""},{"$f":"IFERROR(IF(LeadData[[#This Row],[การคาดการณ์ \nปิด]] <>\"\",IF(LeadData[[#This Row],[การคาดการณ์ \nปิด]] = \"มีนาคม\",LeadData[น้ำหนัก \nการคาดการณ์],0),\"\"),\"\")","v":""},{"$f":"IFERROR(IF(LeadData[[#This Row],[การคาดการณ์ \nปิด]] <>\"\",IF(LeadData[[#This Row],[การคาดการณ์ \nปิด]] = \"เมษายน\",LeadData[น้ำหนัก \nการคาดการณ์],0),\"\"),\"\")","v":""},{"$f":"IFERROR(IF(LeadData[[#This Row],[การคาดการณ์ \nปิด]] <>\"\",IF(LeadData[[#This Row],[การคาดการณ์ \nปิด]] = \"พฤษภาคม\",LeadData[น้ำหนัก \nการคาดการณ์],0),\"\"),\"\")","v":""},{"$f":"IFERROR(IF(LeadData[[#This Row],[การคาดการณ์ \nปิด]] <>\"\",IF(LeadData[[#This Row],[การคาดการณ์ \nปิด]] = \"มิถุนายน\",LeadData[น้ำหนัก \nการคาดการณ์],0),\"\"),\"\")","v":""},{"$f":"IFERROR(IF(LeadData[[#This Row],[การคาดการณ์ \nปิด]] <>\"\",IF(LeadData[[#This Row],[การคาดการณ์ \nปิด]] = \"July\",LeadData[น้ำหนัก \nการคาดการณ์],0),\"\"),\"\")","v":""},{"$f":"IFERROR(IF(LeadData[[#This Row],[การคาดการณ์ \nปิด]] <>\"\",IF(LeadData[[#This Row],[การคาดการณ์ \nปิด]] = \"สิงหาคม\",LeadData[น้ำหนัก \nการคาดการณ์],0),\"\"),\"\")","v":""},{"$f":"IFERROR(IF(LeadData[[#This Row],[การคาดการณ์ \nปิด]] <>\"\",IF(LeadData[[#This Row],[การคาดการณ์ \nปิด]] = \"กันยายน\",LeadData[น้ำหนัก \nการคาดการณ์],0),\"\"),\"\")","v":""},{"$f":"IFERROR(IF(LeadData[[#This Row],[การคาดการณ์ \nปิด]] <>\"\",IF(LeadData[[#This Row],[การคาดการณ์ \nปิด]] = \"ตุลาคม\",LeadData[น้ำหนัก \nการคาดการณ์],0),\"\"),\"\")","v":""},{"$f":"IFERROR(IF(LeadData[[#This Row],[การคาดการณ์ \nปิด]] <>\"\",IF(LeadData[[#This Row],[การคาดการณ์ \nปิด]] = \"พฤศจิกายน\",LeadData[น้ำหนัก \nการคาดการณ์],0),\"\"),\"\")","v":""},{"$f":"IFERROR(IF(LeadData[[#This Row],[การคาดการณ์ \nปิด]] <>\"\",IF(LeadData[[#This Row],[การคาดการณ์ \nปิด]] = \"ธันวาคม\",LeadData[น้ำหนัก \nการคาดการณ์],0),\"\"),\"\")","v":""}]
[null,"ผลรวม",{"$f":"SUBTOTAL(109,ForecastedSales[มกราคม \nการคาดการณ์])","v":{"v":270000,"d":"฿270,000"}},{"$f":"SUBTOTAL(109,ForecastedSales[กุมภาพันธ์ \nการคาดการณ์])","v":{"v":20000,"d":"฿20,000"}},{"$f":"SUBTOTAL(109,ForecastedSales[มีนาคม \nการคาดการณ์])","v":{"v":20000,"d":"฿20,000"}},{"$f":"SUBTOTAL(109,ForecastedSales[เมษายน \nการคาดการณ์])","v":{"v":0,"d":"฿0"}},{"$f":"SUBTOTAL(109,ForecastedSales[พฤษภาคม \nการคาดการณ์])","v":{"v":0,"d":"฿0"}},{"$f":"SUBTOTAL(109,ForecastedSales[มิถุนายน \nการคาดการณ์])","v":{"v":0,"d":"฿0"}},{"$f":"SUBTOTAL(109,ForecastedSales[การคาดการณ์เดือนกรกฎาคม])","v":{"v":0,"d":"฿0"}},{"$f":"SUBTOTAL(109,ForecastedSales[สิงหาคม \nการคาดการณ์])","v":{"v":0,"d":"฿0"}},{"$f":"SUBTOTAL(109,ForecastedSales[กันยายน \nการคาดการณ์])","v":{"v":0,"d":"฿0"}},{"$f":"SUBTOTAL(109,ForecastedSales[ตุลาคม \nการคาดการณ์])","v":{"v":0,"d":"฿0"}},{"$f":"SUBTOTAL(109,ForecastedSales[พฤศจิกายน \nการคาดการณ์])","v":{"v":0,"d":"฿0"}},{"$f":"SUBTOTAL(109,ForecastedSales[ธันวาคม \nการคาดการณ์])","v":{"v":0,"d":"฿0"}}]
[null,"ยอดรวมสะสม",{"$f":"C21","v":{"v":270000,"d":"฿270,000"}},{"$f":"C22+D21","v":{"v":290000,"d":"฿290,000"}},{"$f":"D22+E21","v":{"v":310000,"d":"฿310,000"}},{"$f":"E22+F21","v":{"v":310000,"d":"฿310,000"}},{"$f":"F22+G21","v":{"v":310000,"d":"฿310,000"}},{"$f":"G22+H21","v":{"v":310000,"d":"฿310,000"}},{"$f":"H22+I21","v":{"v":310000,"d":"฿310,000"}},{"$f":"I22+J21","v":{"v":310000,"d":"฿310,000"}},{"$f":"J22+K21","v":{"v":310000,"d":"฿310,000"}},{"$f":"K22+L21","v":{"v":310000,"d":"฿310,000"}},{"$f":"L22+M21","v":{"v":310000,"d":"฿310,000"}},{"$f":"M22+N21","v":{"v":310000,"d":"฿310,000"}}]

{"sheet":"การคาดการณ์น้ำหนักรายเดือน","index":2,"n_rows":3,"n_cols":2,"rows_kept":3}
[null,{"$f":"ชื่อบริษัท","v":"ชื่อบริษัท"}]
[null,"การคาดการณ์แบบถ่วงน้ำหนักรายเดือน"]
[null," "]